[Event "Titled Tuesday Blitz October 18 Late 2022"]
[White "Madaminov, Mukhiddin"]
[Black "Ozen, Bahadir"]
[WhiteFideId "14210703"]
[BlackFideId "6337058"]
[WhiteElo "2341"]
[BlackElo "2503"]
[Result "0-1"]
[Round "06"]
[TimeControl "180+1"]
[Date "2022.10.18"]
[WhiteClock "0:00:03"]
[BlackClock "0:00:03"]

1. d4 {[%clk 0:03:00]}  g6 {[%clk 0:03:00]} 2. Nc3 {[%clk 0:03:00]}  Bg7 {[%clk 0:02:58]} 3. e4 {[%clk 0:03:00]}  c6 {[%clk 0:02:58]} 4. Bc4 {[%clk 0:02:56]}  d5 {[%clk 0:02:56]} 5. exd5 {[%clk 0:02:55]}  b5 {[%clk 0:02:57]} 6. Bb3 {[%clk 0:02:55]}  b4 {[%clk 0:02:57]} 7. Ne4 {[%clk 0:02:31]}  cxd5 {[%clk 0:02:56]} 8. Nc5 {[%clk 0:02:32]}  Nf6 {[%clk 0:02:49]} 9. Nf3 {[%clk 0:02:31]}  O-O {[%clk 0:02:49]} 10. O-O {[%clk 0:02:32]}  Bg4 {[%clk 0:02:36]} 11. a3 {[%clk 0:02:22]}  Nc6 {[%clk 0:02:34]} 12. axb4 {[%clk 0:02:22]}  Bxf3 {[%clk 0:02:34]} 13. Qxf3 {[%clk 0:02:21]}  Nxd4 {[%clk 0:02:34]} 14. Qd3 {[%clk 0:02:20]}  Nxb3 {[%clk 0:02:21]} 15. Nxb3 {[%clk 0:02:21]}  Qc7 {[%clk 0:02:10]} 16. c3 {[%clk 0:02:19]}  e6 {[%clk 0:01:54]} 17. h3 {[%clk 0:02:15]}  Ne4 {[%clk 0:01:46]} 18. Be3 {[%clk 0:02:15]}  Nd6 {[%clk 0:01:39]} 19. Na5 {[%clk 0:02:01]}  Rfd8 {[%clk 0:01:34]} 20. Qa6 {[%clk 0:01:47]}  Nf5 {[%clk 0:01:30]} 21. Bc5 {[%clk 0:01:46]}  d4 {[%clk 0:01:30]} 22. Nc6 {[%clk 0:01:35]}  dxc3 {[%clk 0:01:27]} 23. bxc3 {[%clk 0:01:20]}  Rdc8 {[%clk 0:01:01]} 24. b5 {[%clk 0:00:56]}  Bxc3 {[%clk 0:00:58]} 25. Rac1 {[%clk 0:00:54]}  Bf6 {[%clk 0:00:58]} 26. Nxa7 {[%clk 0:00:52]}  Rcb8 {[%clk 0:00:43]} 27. b6 {[%clk 0:00:44]}  Qb7 {[%clk 0:00:37]} 28. Qb5 {[%clk 0:00:30]}  Qxa7 {[%clk 0:00:35]} 29. Rfd1 {[%clk 0:00:23]}  Qa6 {[%clk 0:00:27]} 30. Qb3 {[%clk 0:00:21]}  Rb7 {[%clk 0:00:18]} 31. Qf3 {[%clk 0:00:17]}  Kg7 {[%clk 0:00:16]} 32. g4 {[%clk 0:00:16]}  Nh4 {[%clk 0:00:16]} 33. Qe4 {[%clk 0:00:12]}  g5 {[%clk 0:00:04]} 34. Be3 {[%clk 0:00:07]}  Ng6 {[%clk 0:00:03]} 35. Rc6 {[%clk 0:00:04]}  Rab8 {[%clk 0:00:03]} 36. Kg2 {[%clk 0:00:03]}  Qe2 {[%clk 0:00:03]} 37. Rd2 {[%clk 0:00:03]}  Nf4+ {[%clk 0:00:04]} 38. Kh2 {[%clk 0:00:01]}  Qf1 {[%clk 0:00:02]} 39. Bxf4 {[%clk 0:00:02]}  gxf4 {[%clk 0:00:03]} 40. Qxf4 {[%clk 0:00:03]}  Qb5 {[%clk 0:00:03]} 41. Rcd6 {[%clk 0:00:03]}  Be5 {[%clk 0:00:03]} 42. Kg2 {[%clk 0:00:03]}  Bxf4 {[%clk 0:00:03]} 0-1


[Site "https://www.chess.com"]

[Event "Titled Tuesday Blitz October 18 Late 2022"]
[White "Manukian, Artak"]
[Black "Rengifo Blancas, Renzo Jhonathan"]
[WhiteFideId "13301373"]
[BlackFideId "3807185"]
[WhiteElo "2469"]
[BlackElo "2058"]
[Result "1-0"]
[Round "06"]
[TimeControl "180+1"]
[Date "2022.10.19"]
[WhiteClock "0:01:17"]
[BlackClock "0:00:01"]

1. e4 {[%clk 0:02:58]}  e5 {[%clk 0:02:59]} 2. Nf3 {[%clk 0:02:58]}  Nc6 {[%clk 0:02:58]} 3. d4 {[%clk 0:02:58]}  exd4 {[%clk 0:02:58]} 4. Nxd4 {[%clk 0:02:59]}  Nf6 {[%clk 0:02:58]} 5. Nxc6 {[%clk 0:02:59]}  bxc6 {[%clk 0:02:59]} 6. e5 {[%clk 0:02:59]}  Qe7 {[%clk 0:02:59]} 7. Qe2 {[%clk 0:03:00]}  Nd5 {[%clk 0:02:59]} 8. c4 {[%clk 0:03:01]}  Ba6 {[%clk 0:02:58]} 9. b3 {[%clk 0:03:01]}  Nb6 {[%clk 0:02:58]} 10. g3 {[%clk 0:02:59]}  Qe6 {[%clk 0:02:58]} 11. Nc3 {[%clk 0:02:57]}  Bb4 {[%clk 0:02:58]} 12. Bb2 {[%clk 0:02:57]}  d5 {[%clk 0:02:58]} 13. exd6 {[%clk 0:02:56]}  cxd6 {[%clk 0:02:53]} 14. O-O-O {[%clk 0:02:55]}  O-O {[%clk 0:02:49]} 15. f4 {[%clk 0:02:45]}  d5 {[%clk 0:02:45]} 16. Qxe6 {[%clk 0:02:45]}  fxe6 {[%clk 0:02:44]} 17. cxd5 {[%clk 0:02:45]}  Bxf1 {[%clk 0:02:42]} 18. Rhxf1 {[%clk 0:02:45]}  cxd5 {[%clk 0:02:42]} 19. Kb1 {[%clk 0:02:43]}  Rab8 {[%clk 0:02:33]} 20. Ne2 {[%clk 0:02:32]}  a5 {[%clk 0:02:03]} 21. Nd4 {[%clk 0:02:31]}  Rfe8 {[%clk 0:01:55]} 22. Nc6 {[%clk 0:01:56]}  Rbc8 {[%clk 0:01:54]} 23. Nxb4 {[%clk 0:01:53]}  axb4 {[%clk 0:01:54]} 24. Rd4 {[%clk 0:01:53]}  Nd7 {[%clk 0:01:50]} 25. Rxb4 {[%clk 0:01:53]}  Nc5 {[%clk 0:01:49]} 26. Rc1 {[%clk 0:01:49]}  g5 {[%clk 0:00:27]} 27. a4 {[%clk 0:01:38]}  gxf4 {[%clk 0:00:18]} 28. gxf4 {[%clk 0:01:39]}  Nd3 {[%clk 0:00:18]} 29. Rxc8 {[%clk 0:01:33]}  Rxc8 {[%clk 0:00:17]} 30. Rb7 {[%clk 0:01:34]}  Nxf4 {[%clk 0:00:17]} 31. a5 {[%clk 0:01:30]}  Nd3 {[%clk 0:00:16]} 32. a6 {[%clk 0:01:27]}  Nc5 {[%clk 0:00:15]} 33. Rg7+ {[%clk 0:01:19]}  Kf8 {[%clk 0:00:15]} 34. Rxh7 {[%clk 0:01:19]}  Ke8 {[%clk 0:00:07]} 35. a7 {[%clk 0:01:17]}  Nxb3 {[%clk 0:00:02]} 36. Rh8+ {[%clk 0:01:17]}  Kd7 {[%clk 0:00:02]} 37. Rxc8 {[%clk 0:01:17]}  Nd2+ {[%clk 0:00:01]} 38. Kc2 {[%clk 0:01:17]} 1-0


[Site "https://www.chess.com"]

[Event "Titled Tuesday Blitz October 18 Late 2022"]
[White "Matinian, Nikita"]
[Black "Al Hosani, Omran"]
[WhiteFideId "24129100"]
[BlackFideId "9308733"]
[WhiteElo "2422"]
[BlackElo "2167"]
[Result "1-0"]
[Round "06"]
[TimeControl "180+1"]
[Date "2022.10.18"]
[WhiteClock "0:00:35"]
[BlackClock "0:00:06"]

1. e4 {[%clk 0:03:00]}  e5 {[%clk 0:02:57]} 2. Nf3 {[%clk 0:03:00]}  Nc6 {[%clk 0:02:56]} 3. Bb5 {[%clk 0:03:01]}  a6 {[%clk 0:02:56]} 4. Ba4 {[%clk 0:03:00]}  Nf6 {[%clk 0:02:56]} 5. O-O {[%clk 0:02:59]}  Be7 {[%clk 0:02:56]} 6. d3 {[%clk 0:02:58]}  b5 {[%clk 0:02:56]} 7. Bb3 {[%clk 0:02:57]}  O-O {[%clk 0:02:55]} 8. a3 {[%clk 0:02:57]}  d6 {[%clk 0:02:54]} 9. Nc3 {[%clk 0:02:57]}  Be6 {[%clk 0:02:52]} 10. Nd5 {[%clk 0:02:55]}  Re8 {[%clk 0:02:30]} 11. h3 {[%clk 0:02:41]}  Na5 {[%clk 0:02:25]} 12. Ba2 {[%clk 0:02:41]}  c6 {[%clk 0:02:18]} 13. Nxe7+ {[%clk 0:02:38]}  Rxe7 {[%clk 0:02:19]} 14. b4 {[%clk 0:02:37]}  Nb7 {[%clk 0:02:19]} 15. Bg5 {[%clk 0:02:36]}  Bxa2 {[%clk 0:02:11]} 16. Bxf6 {[%clk 0:02:31]}  gxf6 {[%clk 0:02:12]} 17. Rxa2 {[%clk 0:02:31]}  d5 {[%clk 0:02:13]} 18. Nh4 {[%clk 0:02:30]}  Nd6 {[%clk 0:02:13]} 19. c4 {[%clk 0:02:18]}  bxc4 {[%clk 0:02:10]} 20. dxc4 {[%clk 0:02:18]}  Nxc4 {[%clk 0:01:32]} 21. Nf5 {[%clk 0:02:16]}  Kh8 {[%clk 0:01:29]} 22. Qg4 {[%clk 0:02:13]}  Qf8 {[%clk 0:01:26]} 23. Rd1 {[%clk 0:01:43]}  Re6 {[%clk 0:00:55]} 24. exd5 {[%clk 0:01:39]}  cxd5 {[%clk 0:00:56]} 25. Rxd5 {[%clk 0:01:40]}  Nb6 {[%clk 0:00:56]} 26. Rd3 {[%clk 0:01:34]}  Qg8 {[%clk 0:00:52]} 27. Qe4 {[%clk 0:01:30]}  Rc8 {[%clk 0:00:46]} 28. Rg3 {[%clk 0:01:29]}  Qf8 {[%clk 0:00:44]} 29. Rd2 {[%clk 0:01:15]}  Rc4 {[%clk 0:00:34]} 30. Qe3 {[%clk 0:01:13]}  Rf4 {[%clk 0:00:30]} 31. Nh6 {[%clk 0:01:06]}  Nc4 {[%clk 0:00:28]} 32. Qc5 {[%clk 0:00:42]}  Qe8 {[%clk 0:00:28]} 33. Rd8 {[%clk 0:00:39]}  Nd6 {[%clk 0:00:10]} 34. Qxd6 {[%clk 0:00:36]}  Rd4 {[%clk 0:00:06]} 35. Nxf7# {[%clk 0:00:35]} 1-0


[Site "https://www.chess.com"]

[Event "Titled Tuesday Blitz October 18 Late 2022"]
[White "Mickiewicz, Piotr"]
[Black "Sivakumar, Shaaketh"]
[WhiteFideId "1114891"]
[BlackFideId "30940176"]
[WhiteElo "2246"]
[BlackElo "2174"]
[Result "1-0"]
[Round "06"]
[TimeControl "180+1"]
[Date "2022.10.19"]
[WhiteClock "0:01:05"]
[BlackClock "0:01:45"]

1. Nf3 {[%clk 0:03:00]}  e6 {[%clk 0:03:00]} 2. g3 {[%clk 0:03:01]}  b6 {[%clk 0:03:01]} 3. Bg2 {[%clk 0:03:02]}  Bb7 {[%clk 0:03:02]} 4. O-O {[%clk 0:03:02]}  f5 {[%clk 0:03:02]} 5. c4 {[%clk 0:02:59]}  Nf6 {[%clk 0:03:03]} 6. b3 {[%clk 0:02:59]}  g6 {[%clk 0:03:03]} 7. Bb2 {[%clk 0:02:59]}  Bg7 {[%clk 0:03:04]} 8. Qc2 {[%clk 0:02:58]}  O-O {[%clk 0:03:05]} 9. d3 {[%clk 0:02:59]}  d6 {[%clk 0:03:05]} 10. Nbd2 {[%clk 0:02:59]}  Qe7 {[%clk 0:03:05]} 11. e4 {[%clk 0:02:57]}  f4 {[%clk 0:03:01]} 12. e5 {[%clk 0:02:55]}  dxe5 {[%clk 0:02:57]} 13. Nxe5 {[%clk 0:02:53]}  Bxg2 {[%clk 0:02:57]} 14. Kxg2 {[%clk 0:02:51]}  Nbd7 {[%clk 0:02:53]} 15. Ndf3 {[%clk 0:02:46]}  Nxe5 {[%clk 0:02:52]} 16. Nxe5 {[%clk 0:02:41]}  Nd7 {[%clk 0:02:50]} 17. Rfe1 {[%clk 0:02:26]}  f3+ {[%clk 0:02:39]} 18. Nxf3 {[%clk 0:02:20]}  Qf7 {[%clk 0:02:39]} 19. Ng5 {[%clk 0:02:13]}  Qf5 {[%clk 0:02:36]} 20. Bxg7 {[%clk 0:02:08]}  Kxg7 {[%clk 0:02:31]} 21. Nxe6+ {[%clk 0:02:07]}  Kg8 {[%clk 0:02:30]} 22. Nxf8 {[%clk 0:02:08]}  Rxf8 {[%clk 0:02:29]} 23. Qe2 {[%clk 0:02:05]}  Ne5 {[%clk 0:02:24]} 24. Qxe5 {[%clk 0:01:34]}  Qf3+ {[%clk 0:02:23]} 25. Kh3 {[%clk 0:01:32]}  Rf5 {[%clk 0:02:23]} 26. Qe6+ {[%clk 0:01:24]}  Kg7 {[%clk 0:02:22]} 27. Re4 {[%clk 0:01:17]}  g5 {[%clk 0:01:49]} 28. Qe7+ {[%clk 0:01:10]}  Rf7 {[%clk 0:01:48]} 29. Qxg5+ {[%clk 0:01:09]}  Kf8 {[%clk 0:01:47]} 30. Qh6+ {[%clk 0:01:05]}  Rg7 {[%clk 0:01:45]} 31. Rf4+ {[%clk 0:01:05]} 1-0


[Site "https://www.chess.com"]

[Event "Titled Tuesday Blitz October 18 Late 2022"]
[White "Mohammadian, Mohammad"]
[Black "Antonio, Jorge Carlos"]
[WhiteFideId "12566055"]
[BlackFideId "113190"]
[WhiteElo "1489"]
[BlackElo "2247"]
[Result "0-1"]
[Round "06"]
[TimeControl "180+1"]
[Date "2022.10.19"]
[WhiteClock "0:01:50"]
[BlackClock "0:01:09"]

1. e4 {[%clk 0:03:00]}  c5 {[%clk 0:02:55]} 2. Nf3 {[%clk 0:02:59]}  e6 {[%clk 0:02:55]} 3. d4 {[%clk 0:02:58]}  cxd4 {[%clk 0:02:55]} 4. Nxd4 {[%clk 0:02:58]}  a6 {[%clk 0:02:55]} 5. Nc3 {[%clk 0:02:58]}  Nc6 {[%clk 0:02:55]} 6. Be3 {[%clk 0:02:57]}  Bb4 {[%clk 0:02:53]} 7. a3 {[%clk 0:02:53]}  Bxc3+ {[%clk 0:02:51]} 8. bxc3 {[%clk 0:02:53]}  Nf6 {[%clk 0:02:50]} 9. Bd3 {[%clk 0:02:52]}  O-O {[%clk 0:02:48]} 10. O-O {[%clk 0:02:51]}  d5 {[%clk 0:02:45]} 11. exd5 {[%clk 0:02:51]}  exd5 {[%clk 0:02:44]} 12. f3 {[%clk 0:02:46]}  Ne5 {[%clk 0:02:30]} 13. Qe2 {[%clk 0:02:41]}  Be6 {[%clk 0:02:19]} 14. Qf2 {[%clk 0:02:41]}  Rc8 {[%clk 0:02:14]} 15. Bd2 {[%clk 0:02:35]}  Nc4 {[%clk 0:02:12]} 16. Bxc4 {[%clk 0:02:33]}  Rxc4 {[%clk 0:02:08]} 17. Rab1 {[%clk 0:02:33]}  b5 {[%clk 0:02:07]} 18. Rb4 {[%clk 0:02:26]}  Qc7 {[%clk 0:02:01]} 19. Qe2 {[%clk 0:02:19]}  Re8 {[%clk 0:01:51]} 20. Rxc4 {[%clk 0:02:15]}  dxc4 {[%clk 0:01:42]} 21. Qd1 {[%clk 0:02:10]}  Bd7 {[%clk 0:01:30]} 22. Re1 {[%clk 0:02:08]}  Rxe1+ {[%clk 0:01:29]} 23. Qxe1 {[%clk 0:02:07]}  Qd6 {[%clk 0:01:26]} 24. Qe3 {[%clk 0:02:01]}  Qxa3 {[%clk 0:01:25]} 25. Qe7 {[%clk 0:01:54]}  Qxe7 {[%clk 0:01:14]} 26. Kf2 {[%clk 0:01:50]}  Nd5 {[%clk 0:01:09]} 0-1


[Site "https://www.chess.com"]

[Event "Titled Tuesday Blitz October 18 Late 2022"]
[White "O`Gorman, Tom"]
[Black "Almedina Ortiz, Edgardo J."]
[WhiteFideId "2508249"]
[BlackFideId "3100197"]
[WhiteElo "2271"]
[BlackElo "2217"]
[Result "1-0"]
[Round "06"]
[TimeControl "180+1"]
[Date "2022.10.19"]
[WhiteClock "0:01:05"]
[BlackClock "0:00:02"]

1. e4 {[%clk 0:03:00]}  e5 {[%clk 0:02:59]} 2. Nf3 {[%clk 0:03:00]}  Nc6 {[%clk 0:03:00]} 3. Bb5 {[%clk 0:02:58]}  a6 {[%clk 0:03:00]} 4. Ba4 {[%clk 0:02:58]}  Nf6 {[%clk 0:03:00]} 5. O-O {[%clk 0:02:57]}  Be7 {[%clk 0:02:58]} 6. Re1 {[%clk 0:02:56]}  b5 {[%clk 0:02:59]} 7. Bb3 {[%clk 0:02:56]}  d6 {[%clk 0:02:59]} 8. c3 {[%clk 0:02:54]}  O-O {[%clk 0:02:59]} 9. h3 {[%clk 0:02:54]}  Na5 {[%clk 0:02:59]} 10. Bc2 {[%clk 0:02:54]}  c5 {[%clk 0:03:00]} 11. d4 {[%clk 0:02:54]}  Qc7 {[%clk 0:03:00]} 12. d5 {[%clk 0:02:55]}  Nd7 {[%clk 0:02:58]} 13. Nbd2 {[%clk 0:02:54]}  c4 {[%clk 0:02:51]} 14. Nf1 {[%clk 0:02:52]}  Nb6 {[%clk 0:02:31]} 15. Ng3 {[%clk 0:02:51]}  g6 {[%clk 0:02:31]} 16. Bh6 {[%clk 0:02:43]}  Rd8 {[%clk 0:02:25]} 17. Qd2 {[%clk 0:02:44]}  Nb7 {[%clk 0:02:21]} 18. h4 {[%clk 0:02:13]}  Nc5 {[%clk 0:02:18]} 19. h5 {[%clk 0:02:13]}  a5 {[%clk 0:01:49]} 20. Ng5 {[%clk 0:01:55]}  f6 {[%clk 0:01:39]} 21. Nf3 {[%clk 0:01:55]}  g5 {[%clk 0:01:38]} 22. Nh2 {[%clk 0:01:47]}  Bd7 {[%clk 0:01:33]} 23. f3 {[%clk 0:01:46]}  Rdb8 {[%clk 0:01:30]} 24. Ng4 {[%clk 0:01:46]}  Qd8 {[%clk 0:01:30]} 25. Ne3 {[%clk 0:01:44]}  Qe8 {[%clk 0:01:22]} 26. Nef5 {[%clk 0:01:42]}  b4 {[%clk 0:01:10]} 27. Bg7 {[%clk 0:01:36]}  b3 {[%clk 0:00:50]} 28. Bb1 {[%clk 0:01:29]}  bxa2 {[%clk 0:00:42]} 29. Bxa2 {[%clk 0:01:30]}  Nb3 {[%clk 0:00:32]} 30. Bxb3 {[%clk 0:01:26]}  cxb3 {[%clk 0:00:33]} 31. h6 {[%clk 0:01:18]}  a4 {[%clk 0:00:24]} 32. Nxe7+ {[%clk 0:01:10]}  Qxe7 {[%clk 0:00:22]} 33. Nh5 {[%clk 0:01:11]}  f5 {[%clk 0:00:19]} 34. Nf6+ {[%clk 0:01:09]}  Kf7 {[%clk 0:00:18]} 35. Qxg5 {[%clk 0:01:08]}  Qd8 {[%clk 0:00:09]} 36. Qh5+ {[%clk 0:01:06]}  Ke7 {[%clk 0:00:09]} 37. Nxh7 {[%clk 0:01:07]}  Qg8 {[%clk 0:00:02]} 38. Bf6# {[%clk 0:01:05]} 1-0


[Site "https://www.chess.com"]

[Event "Titled Tuesday Blitz October 18 Late 2022"]
[White "Omariev, Maksim"]
[Black "Bulgurlu, Okan"]
[WhiteFideId "4193423"]
[BlackFideId "6352316"]
[WhiteElo "2426"]
[BlackElo "2177"]
[Result "0-1"]
[Round "06"]
[TimeControl "180+1"]
[Date "2022.10.19"]
[WhiteClock "0:00:07"]
[BlackClock "0:00:55"]

1. g4 {[%clk 0:03:00]}  c6 {[%clk 0:03:00]} 2. Bg2 {[%clk 0:03:00]}  g6 {[%clk 0:03:01]} 3. d4 {[%clk 0:02:59]}  Bg7 {[%clk 0:03:02]} 4. c3 {[%clk 0:02:59]}  d5 {[%clk 0:03:02]} 5. g5 {[%clk 0:02:59]}  h6 {[%clk 0:03:01]} 6. h4 {[%clk 0:02:58]}  hxg5 {[%clk 0:03:00]} 7. hxg5 {[%clk 0:02:59]}  Rxh1 {[%clk 0:02:59]} 8. Bxh1 {[%clk 0:03:00]}  e5 {[%clk 0:02:59]} 9. dxe5 {[%clk 0:02:59]}  Bxe5 {[%clk 0:03:00]} 10. Nf3 {[%clk 0:02:58]}  Bg7 {[%clk 0:03:00]} 11. Bf4 {[%clk 0:02:58]}  Nd7 {[%clk 0:02:59]} 12. Nbd2 {[%clk 0:02:55]}  Qb6 {[%clk 0:02:57]} 13. Qc2 {[%clk 0:02:55]}  Nc5 {[%clk 0:02:57]} 14. Nd4 {[%clk 0:02:45]}  Bxd4 {[%clk 0:02:46]} 15. cxd4 {[%clk 0:02:45]}  Ne6 {[%clk 0:02:44]} 16. Be3 {[%clk 0:02:39]}  Bd7 {[%clk 0:02:44]} 17. O-O-O {[%clk 0:02:33]}  Nxd4 {[%clk 0:02:35]} 18. Qd3 {[%clk 0:02:33]}  Qc5+ {[%clk 0:02:17]} 19. Kb1 {[%clk 0:02:31]}  Bf5 {[%clk 0:02:16]} 20. Ne4 {[%clk 0:02:09]}  dxe4 {[%clk 0:01:56]} 21. Qxd4 {[%clk 0:02:07]}  Qxd4 {[%clk 0:01:56]} 22. Rxd4 {[%clk 0:02:08]}  Rd8 {[%clk 0:01:55]} 23. Ra4 {[%clk 0:01:59]}  Rd1+ {[%clk 0:01:50]} 24. Kc2 {[%clk 0:01:56]}  Rxh1 {[%clk 0:01:50]} 25. Rxa7 {[%clk 0:01:56]}  Bc8 {[%clk 0:01:46]} 26. Ra4 {[%clk 0:01:52]}  Rh4 {[%clk 0:01:43]} 27. f4 {[%clk 0:01:35]}  Ne7 {[%clk 0:01:41]} 28. Kd2 {[%clk 0:01:28]}  Bf5 {[%clk 0:01:39]} 29. Ra7 {[%clk 0:01:18]}  b5 {[%clk 0:01:33]} 30. Bc5 {[%clk 0:01:08]}  Nd5 {[%clk 0:01:32]} 31. e3 {[%clk 0:01:08]}  Rh2+ {[%clk 0:01:31]} 32. Kc1 {[%clk 0:01:08]}  Re2 {[%clk 0:01:23]} 33. Ra8+ {[%clk 0:00:49]}  Kd7 {[%clk 0:01:15]} 34. Ra7+ {[%clk 0:00:49]}  Kc8 {[%clk 0:01:11]} 35. Rxf7 {[%clk 0:00:25]}  Nxe3 {[%clk 0:01:07]} 36. b4 {[%clk 0:00:14]}  Rc2+ {[%clk 0:00:58]} 37. Kb1 {[%clk 0:00:14]}  Re2 {[%clk 0:00:58]} 38. Rf6 {[%clk 0:00:08]}  Nd5 {[%clk 0:00:54]} 39. Rxc6+ {[%clk 0:00:08]}  Kb7 {[%clk 0:00:55]} 40. Rd6 {[%clk 0:00:07]}  e3+ {[%clk 0:00:55]} 41. Kc1 {[%clk 0:00:06]}  Rc2+ {[%clk 0:00:55]} 42. Kd1 {[%clk 0:00:06]}  Nc3+ {[%clk 0:00:55]} 43. Ke1 {[%clk 0:00:07]}  Rc1+ {[%clk 0:00:55]} 44. Rd1 {[%clk 0:00:07]}  Rxd1# {[%clk 0:00:55]} 0-1


[Site "https://www.chess.com"]

[Event "Titled Tuesday Blitz October 18 Late 2022"]
[White "Ovezdurdyyeva, Jemal"]
[Black "Baskakov, Egor"]
[WhiteFideId "14001888"]
[BlackFideId "24197866"]
[WhiteElo "1961"]
[BlackElo "2211"]
[Result "0-1"]
[Round "06"]
[TimeControl "180+1"]
[Date "2022.10.18"]
[WhiteClock "0:00:01"]
[BlackClock "0:00:23"]

1. e4 {[%clk 0:03:00]}  c5 {[%clk 0:02:59]} 2. Nf3 {[%clk 0:03:00]}  Nf6 {[%clk 0:02:57]} 3. e5 {[%clk 0:02:52]}  Nd5 {[%clk 0:02:57]} 4. c3 {[%clk 0:02:51]}  Nc6 {[%clk 0:02:57]} 5. d4 {[%clk 0:02:51]}  cxd4 {[%clk 0:02:58]} 6. cxd4 {[%clk 0:02:45]}  g6 {[%clk 0:02:58]} 7. Nc3 {[%clk 0:02:43]}  Nxc3 {[%clk 0:02:57]} 8. bxc3 {[%clk 0:02:42]}  Bg7 {[%clk 0:02:57]} 9. Bc4 {[%clk 0:02:38]}  O-O {[%clk 0:02:57]} 10. O-O {[%clk 0:02:37]}  d6 {[%clk 0:02:57]} 11. exd6 {[%clk 0:02:35]}  Qxd6 {[%clk 0:02:58]} 12. a4 {[%clk 0:02:27]}  Rd8 {[%clk 0:02:56]} 13. Ng5 {[%clk 0:02:23]}  e6 {[%clk 0:02:53]} 14. Qf3 {[%clk 0:02:21]}  Qc7 {[%clk 0:02:45]} 15. Ne4 {[%clk 0:02:17]}  h6 {[%clk 0:02:41]} 16. Ba2 {[%clk 0:02:09]}  b6 {[%clk 0:02:29]} 17. Bf4 {[%clk 0:02:09]}  e5 {[%clk 0:02:28]} 18. Bg3 {[%clk 0:02:04]}  Bb7 {[%clk 0:02:26]} 19. d5 {[%clk 0:01:43]}  Na5 {[%clk 0:02:12]} 20. Rfd1 {[%clk 0:01:43]}  Nc4 {[%clk 0:02:00]} 21. Nf6+ {[%clk 0:01:26]}  Kh8 {[%clk 0:01:59]} 22. Ng4 {[%clk 0:01:26]}  f5 {[%clk 0:01:53]} 23. Bxc4 {[%clk 0:01:15]}  Qxc4 {[%clk 0:01:49]} 24. Nxe5 {[%clk 0:01:11]}  Bxe5 {[%clk 0:01:48]} 25. Bxe5+ {[%clk 0:01:11]}  Kh7 {[%clk 0:01:48]} 26. Bf6 {[%clk 0:01:03]}  Rxd5 {[%clk 0:01:47]} 27. Qe3 {[%clk 0:01:03]}  Qc7 {[%clk 0:01:39]} 28. Rxd5 {[%clk 0:01:00]}  Bxd5 {[%clk 0:01:39]} 29. Rd1 {[%clk 0:01:00]}  Bf7 {[%clk 0:01:40]} 30. Be5 {[%clk 0:00:56]}  Qc6 {[%clk 0:01:37]} 31. Rd6 {[%clk 0:00:40]}  Qxa4 {[%clk 0:01:34]} 32. h4 {[%clk 0:00:39]}  Qxh4 {[%clk 0:01:20]} 33. Rd7 {[%clk 0:00:33]}  Kg8 {[%clk 0:01:07]} 34. Bg3 {[%clk 0:00:29]}  Qg5 {[%clk 0:00:56]} 35. Qd4 {[%clk 0:00:22]}  Re8 {[%clk 0:00:53]} 36. Bh4 {[%clk 0:00:18]}  Qc1+ {[%clk 0:00:34]} 37. Kh2 {[%clk 0:00:17]}  Qe1 {[%clk 0:00:35]} 38. Rd8 {[%clk 0:00:12]}  g5 {[%clk 0:00:28]} 39. Bg3 {[%clk 0:00:10]}  f4 {[%clk 0:00:27]} 40. Bxf4 {[%clk 0:00:10]}  gxf4 {[%clk 0:00:28]} 41. Rxe8+ {[%clk 0:00:08]}  Qxe8 {[%clk 0:00:29]} 42. Qxf4 {[%clk 0:00:08]}  Kh7 {[%clk 0:00:24]} 43. Qf5+ {[%clk 0:00:08]}  Bg6 {[%clk 0:00:24]} 44. Qf6 {[%clk 0:00:08]}  Qf7 {[%clk 0:00:25]} 45. Qd6 {[%clk 0:00:08]}  Qxf2 {[%clk 0:00:23]} 46. Qc7+ {[%clk 0:00:02]}  Qf7 {[%clk 0:00:24]} 47. Qe5 {[%clk 0:00:01]}  Qb7 {[%clk 0:00:23]} 0-1


[Site "https://www.chess.com"]

[Event "Titled Tuesday Blitz October 18 Late 2022"]
[White "Pakleza, Zbigniew"]
[Black "Zou, Chen"]
[WhiteFideId "1119290"]
[BlackFideId "8610959"]
[WhiteElo "2411"]
[BlackElo "2325"]
[Result "0-1"]
[Round "06"]
[TimeControl "180+1"]
[Date "2022.10.18"]
[WhiteClock "0:00:02"]
[BlackClock "0:00:07"]

1. d4 {[%clk 0:03:00]}  Nf6 {[%clk 0:02:58]} 2. Nf3 {[%clk 0:03:01]}  d5 {[%clk 0:02:55]} 3. Bf4 {[%clk 0:03:01]}  c5 {[%clk 0:02:45]} 4. c3 {[%clk 0:03:01]}  e6 {[%clk 0:02:45]} 5. e3 {[%clk 0:03:01]}  Bd6 {[%clk 0:02:43]} 6. Bg3 {[%clk 0:03:01]}  O-O {[%clk 0:02:43]} 7. Nbd2 {[%clk 0:03:01]}  b6 {[%clk 0:02:44]} 8. Ne5 {[%clk 0:03:01]}  Bb7 {[%clk 0:02:36]} 9. f4 {[%clk 0:02:59]}  Nc6 {[%clk 0:02:34]} 10. Bd3 {[%clk 0:02:59]}  Ne7 {[%clk 0:02:34]} 11. Qb1 {[%clk 0:02:59]}  g6 {[%clk 0:02:15]} 12. Bf2 {[%clk 0:02:55]}  Nc8 {[%clk 0:01:57]} 13. Bh4 {[%clk 0:02:34]}  Be7 {[%clk 0:01:56]} 14. g4 {[%clk 0:02:33]}  Nd6 {[%clk 0:01:55]} 15. Bxf6 {[%clk 0:02:23]}  Bxf6 {[%clk 0:01:56]} 16. Ke2 {[%clk 0:02:13]}  cxd4 {[%clk 0:01:35]} 17. cxd4 {[%clk 0:02:07]}  Bxe5 {[%clk 0:01:15]} 18. fxe5 {[%clk 0:02:02]}  Nc4 {[%clk 0:01:16]} 19. Nf3 {[%clk 0:01:27]}  f6 {[%clk 0:01:03]} 20. Bxg6 {[%clk 0:00:55]}  fxe5 {[%clk 0:01:03]} 21. Bxh7+ {[%clk 0:00:54]}  Kh8 {[%clk 0:01:03]} 22. Qg6 {[%clk 0:00:51]}  Rxf3 {[%clk 0:00:32]} 23. Kxf3 {[%clk 0:00:52]}  Qh4 {[%clk 0:00:32]} 24. Ke2 {[%clk 0:00:41]}  Ba6 {[%clk 0:00:14]} 25. Qxe6 {[%clk 0:00:35]}  Qxh7 {[%clk 0:00:12]} 26. Rac1 {[%clk 0:00:27]}  Nxb2+ {[%clk 0:00:09]} 27. Kf2 {[%clk 0:00:18]}  Nd3+ {[%clk 0:00:08]} 28. Kg3 {[%clk 0:00:19]}  exd4 {[%clk 0:00:05]} 29. Qxd5 {[%clk 0:00:12]}  Rf8 {[%clk 0:00:03]} 30. Qxd4+ {[%clk 0:00:13]}  Kg8 {[%clk 0:00:03]} 31. Qd5+ {[%clk 0:00:12]}  Kh8 {[%clk 0:00:03]} 32. Qd4+ {[%clk 0:00:08]}  Kg8 {[%clk 0:00:03]} 33. Rcf1 {[%clk 0:00:07]}  Re8 {[%clk 0:00:02]} 34. Qd5+ {[%clk 0:00:06]}  Kh8 {[%clk 0:00:02]} 35. Qd4+ {[%clk 0:00:07]}  Kg8 {[%clk 0:00:02]} 36. Rf5 {[%clk 0:00:07]}  Qe7 {[%clk 0:00:02]} 37. Qd5+ {[%clk 0:00:07]}  Kg7 {[%clk 0:00:02]} 38. Rg5+ {[%clk 0:00:06]}  Kh7 {[%clk 0:00:02]} 39. Rh5+ {[%clk 0:00:06]}  Kg7 {[%clk 0:00:03]} 40. Qg5+ {[%clk 0:00:05]}  Qxg5 {[%clk 0:00:03]} 41. Rxg5+ {[%clk 0:00:06]}  Kf6 {[%clk 0:00:03]} 42. Rf5+ {[%clk 0:00:06]}  Kg6 {[%clk 0:00:04]} 43. h4 {[%clk 0:00:02]}  Rxe3+ {[%clk 0:00:04]} 44. Kh2 {[%clk 0:00:02]}  Re2+ {[%clk 0:00:05]} 45. Kg3 {[%clk 0:00:02]}  Re3+ {[%clk 0:00:05]} 46. Kh2 {[%clk 0:00:03]}  Re2+ {[%clk 0:00:06]} 47. Kg3 {[%clk 0:00:04]}  Bb7 {[%clk 0:00:06]} 48. h5+ {[%clk 0:00:03]}  Kg7 {[%clk 0:00:07]} 49. Rd1 {[%clk 0:00:03]}  Re3+ {[%clk 0:00:07]} 50. Kh4 {[%clk 0:00:03]}  Bc8 {[%clk 0:00:06]} 51. Rd5 {[%clk 0:00:03]}  Nf4 {[%clk 0:00:06]} 52. Rd8 {[%clk 0:00:02]}  Ng2+ {[%clk 0:00:06]} 53. Kg5 {[%clk 0:00:02]}  Re5# {[%clk 0:00:07]} 0-1


[Site "https://www.chess.com"]